[Event "Late-Titled-Tuesday-Blitz-June-25-2024"]
[Site "Chess.com"]
[Date "2024.06.25"]
[Round "8"]
[White "SujanaLohani"]
[Black "Cheer_Down"]
[Result "1-0"]
[WhiteElo "2311"]
[BlackElo "2466"]
[TimeControl "180+1"]
[EndTime "15:25:19 PDT"]
[Termination "SujanaLohani won by resignation"]

1. e4 {[%clk 0:02:59.3]} 1... e6 {[%clk 0:02:58.2]} 2. d3 {[%clk 0:02:55.3]}
2... d5 {[%clk 0:02:58.2]} 3. Nd2 {[%clk 0:02:54.8]} 3... c5 {[%clk 0:02:58.1]}
4. Ngf3 {[%clk 0:02:55.1]} 4... Nc6 {[%clk 0:02:58.4]} 5. g3 {[%clk 0:02:55.8]}
5... Nf6 {[%clk 0:02:58.5]} 6. Bg2 {[%clk 0:02:56.4]} 6... Be7 {[%clk 0:02:59]}
7. Qe2 {[%clk 0:02:56.2]} 7... O-O {[%clk 0:02:55.3]} 8. O-O {[%clk 0:02:40.5]}
8... Qc7 {[%clk 0:02:53.8]} 9. Re1 {[%clk 0:02:25.5]} 9... b5 {[%clk 0:02:52.9]}
10. b3 {[%clk 0:02:25.3]} 10... Bb7 {[%clk 0:02:47.2]} 11. Bb2 {[%clk
0:02:24.7]} 11... Rfd8 {[%clk 0:02:35.2]} 12. e5 {[%clk 0:02:08.4]} 12... Nd7
{[%clk 0:02:35.2]} 13. c4 {[%clk 0:02:07.3]} 13... bxc4 {[%clk 0:02:28.9]} 14.
dxc4 {[%clk 0:02:05.6]} 14... Nb6 {[%clk 0:02:29]} 15. Rac1 {[%clk 0:02:04.5]}
15... dxc4 {[%clk 0:02:13.3]} 16. Nxc4 {[%clk 0:01:58.8]} 16... Ba6 {[%clk
0:02:06.4]} 17. h4 {[%clk 0:01:54.2]} 17... Nxc4 {[%clk 0:02:00.8]} 18. bxc4
{[%clk 0:01:52.6]} 18... Rab8 {[%clk 0:02:00.8]} 19. Ba1 {[%clk 0:01:52.6]}
19... Rb4 {[%clk 0:01:45.9]} 20. Qe4 {[%clk 0:01:50.1]} 20... h6 {[%clk
0:01:36.8]} 21. g4 {[%clk 0:01:48.8]} 21... Na5 {[%clk 0:01:31]} 22. Bf1 {[%clk
0:01:45.1]} 22... Bb7 {[%clk 0:01:25.3]} 23. Qf4 {[%clk 0:01:41.6]} 23... Bxf3
{[%clk 0:01:18.3]} 24. Qxf3 {[%clk 0:01:40]} 24... Bxh4 {[%clk 0:01:18.8]} 25.
Bd3 {[%clk 0:01:38.6]} 25... Bg5 {[%clk 0:01:08.1]} 26. Rc2 {[%clk 0:01:36.1]}
26... Nc6 {[%clk 0:01:08.1]} 27. Qe4 {[%clk 0:01:34.3]} 27... g6 {[%clk
0:01:08.1]} 28. f4 {[%clk 0:01:33.8]} 28... Be7 {[%clk 0:01:04.9]} 29. f5 {[%clk
0:01:34.2]} 29... Nd4 {[%clk 0:00:31.4]} 30. fxg6 {[%clk 0:01:32.9]} 30... Nxc2
{[%clk 0:00:28.3]} 31. gxf7+ {[%clk 0:01:32.2]} 31... Kxf7 {[%clk 0:00:28.3]}
32. Qg6+ {[%clk 0:01:30.3]} 32... Kf8 {[%clk 0:00:26.1]} 33. Rf1+ {[%clk
0:01:29.7]} 1-0

[Event "Late-Titled-Tuesday-Blitz-June-25-2024"]
[Site "Chess.com"]
[Date "2024.06.25"]
[Round "8"]
[White "konradrutkowski"]
[Black "dennisodessa"]
[Result "0-1"]
[WhiteElo "2511"]
[BlackElo "2661"]
[TimeControl "180+1"]
[EndTime "15:25:25 PDT"]
[Termination "dennisodessa won by resignation"]

1. e4 {[%clk 0:03:00.9]} 1... e6 {[%clk 0:02:51.8]} 2. d3 {[%clk 0:02:59.7]}
2... c5 {[%clk 0:02:51.5]} 3. Nd2 {[%clk 0:03:00.1]} 3... Nc6 {[%clk 0:02:52.4]}
4. Ngf3 {[%clk 0:02:59.7]} 4... g6 {[%clk 0:02:51.5]} 5. g3 {[%clk 0:03:00.2]}
5... Bg7 {[%clk 0:02:51.3]} 6. Bg2 {[%clk 0:03:00.7]} 6... d6 {[%clk 0:02:52.2]}
7. O-O {[%clk 0:03:00.7]} 7... Nge7 {[%clk 0:02:53.1]} 8. c3 {[%clk 0:03:00.6]}
8... O-O {[%clk 0:02:54]} 9. Re1 {[%clk 0:03:00.6]} 9... b5 {[%clk 0:02:54.3]}
10. Nf1 {[%clk 0:03:00.7]} 10... b4 {[%clk 0:02:54]} 11. Bd2 {[%clk 0:02:59.7]}
11... a5 {[%clk 0:02:53.7]} 12. h4 {[%clk 0:02:59.1]} 12... Ba6 {[%clk 0:02:54]}
13. Qc2 {[%clk 0:02:52.1]} 13... Rb8 {[%clk 0:02:49.1]} 14. Rab1 {[%clk
0:02:47]} 14... Ne5 {[%clk 0:02:25.1]} 15. Nxe5 {[%clk 0:02:32.5]} 15... dxe5
{[%clk 0:02:26]} 16. c4 {[%clk 0:02:27.8]} 16... Nc6 {[%clk 0:02:25.6]} 17. Be3
{[%clk 0:02:22.5]} 17... Nd4 {[%clk 0:02:18.6]} 18. Bxd4 {[%clk 0:02:21.8]}
18... cxd4 {[%clk 0:02:19.5]} 19. b3 {[%clk 0:02:20.8]} 19... f5 {[%clk
0:02:19.3]} 20. exf5 {[%clk 0:02:12.8]} 20... exf5 {[%clk 0:02:20.2]} 21. Nh2
{[%clk 0:02:00.4]} 21... Qc7 {[%clk 0:02:01]} 22. Nf3 {[%clk 0:01:40.8]} 22...
Bb7 {[%clk 0:01:58.8]} 23. Qe2 {[%clk 0:01:27.7]} 23... Rbe8 {[%clk 0:01:45.1]}
24. Nd2 {[%clk 0:01:12.3]} 24... Bxg2 {[%clk 0:01:37.4]} 25. Kxg2 {[%clk
0:01:13.2]} 25... Qb7+ {[%clk 0:01:35.9]} 26. f3 {[%clk 0:01:03.9]} 26... Bh6
{[%clk 0:01:33.9]} 27. Rb2 {[%clk 0:00:50.8]} 27... Qe7 {[%clk 0:01:20.7]} 28.
f4 {[%clk 0:00:35]} 28... Qb7+ {[%clk 0:01:19.9]} 29. Qf3 {[%clk 0:00:27.4]}
29... Qxf3+ {[%clk 0:01:19.9]} 30. Kxf3 {[%clk 0:00:27.2]} 30... exf4 {[%clk
0:01:20.8]} 31. gxf4 {[%clk 0:00:28.1]} 31... Rxe1 {[%clk 0:01:20]} 0-1

[Event "Late-Titled-Tuesday-Blitz-June-25-2024"]
[Site "Chess.com"]
[Date "2024.06.25"]
[Round "8"]
[White "Yurovskykh_Oleksandr"]
[Black "koncheto"]
[Result "1-0"]
[WhiteElo "2625"]
[BlackElo "2571"]
[TimeControl "180+1"]
[EndTime "15:25:35 PDT"]
[Termination "Yurovskykh_Oleksandr won by resignation"]

1. d4 {[%clk 0:02:57]} 1... Nf6 {[%clk 0:02:59.3]} 2. Nf3 {[%clk 0:02:56.5]}
2... e6 {[%clk 0:02:59.4]} 3. Bf4 {[%clk 0:02:56.3]} 3... c5 {[%clk 0:02:58.4]}
4. c3 {[%clk 0:02:56.1]} 4... d5 {[%clk 0:02:58.5]} 5. e3 {[%clk 0:02:56.3]}
5... Bd6 {[%clk 0:02:58.7]} 6. Bg3 {[%clk 0:02:56.8]} 6... Qc7 {[%clk 0:02:59]}
7. dxc5 {[%clk 0:02:56.2]} 7... Qxc5 {[%clk 0:02:58]} 8. Nbd2 {[%clk 0:02:56.4]}
8... O-O {[%clk 0:02:56.7]} 9. Bd3 {[%clk 0:02:56.1]} 9... Qc7 {[%clk
0:02:28.5]} 10. Qe2 {[%clk 0:02:48.2]} 10... Nc6 {[%clk 0:01:39.9]} 11. e4
{[%clk 0:02:44.9]} 11... dxe4 {[%clk 0:01:29.2]} 12. Bxe4 {[%clk 0:02:39.8]}
12... Bd7 {[%clk 0:01:24.7]} 13. Bc2 {[%clk 0:02:18.9]} 13... Ne7 {[%clk
0:01:04.8]} 14. O-O-O {[%clk 0:02:14.8]} 14... Bxg3 {[%clk 0:00:53.3]} 15. hxg3
{[%clk 0:02:15.7]} 15... Bc6 {[%clk 0:00:50.3]} 16. Rh2 {[%clk 0:01:28.2]} 16...
h6 {[%clk 0:00:34.7]} 17. Ne5 {[%clk 0:01:25.2]} 17... Rad8 {[%clk 0:00:28.5]}
18. g4 {[%clk 0:01:21]} 18... Bb5 {[%clk 0:00:11.9]} 19. c4 {[%clk 0:01:15.8]}
19... Rd5 {[%clk 0:00:06.8]} 20. f4 {[%clk 0:01:13.1]} 20... Rc5 {[%clk
0:00:06.4]} 21. g5 {[%clk 0:01:05.4]} 21... hxg5 {[%clk 0:00:05.8]} 22. Rdh1
{[%clk 0:01:04.6]} 22... Ng6 {[%clk 0:00:04.4]} 23. Bxg6 {[%clk 0:01:02.8]} 1-0

[Event "Late-Titled-Tuesday-Blitz-June-25-2024"]
[Site "Chess.com"]
[Date "2024.06.25"]
[Round "8"]
[White "djano"]
[Black "Talent-OF-Slovenia"]
[Result "1-0"]
[WhiteElo "2582"]
[BlackElo "2452"]
[TimeControl "180+1"]
[EndTime "15:25:35 PDT"]
[Termination "djano won by resignation"]

1. e4 {[%clk 0:03:00.9]} 1... e6 {[%clk 0:02:55.1]} 2. d4 {[%clk 0:02:55]} 2...
d5 {[%clk 0:02:52]} 3. Bd3 {[%clk 0:02:55.2]} 3... dxe4 {[%clk 0:02:51.8]} 4.
Bxe4 {[%clk 0:02:56.1]} 4... c6 {[%clk 0:02:51.1]} 5. c3 {[%clk 0:02:50.5]} 5...
Nf6 {[%clk 0:02:45.8]} 6. Bc2 {[%clk 0:02:50.6]} 6... Nbd7 {[%clk 0:02:46.3]} 7.
Nf3 {[%clk 0:02:50.7]} 7... Bd6 {[%clk 0:02:43.9]} 8. Nbd2 {[%clk 0:02:50.2]}
8... O-O {[%clk 0:02:42.7]} 9. Qe2 {[%clk 0:02:48.3]} 9... e5 {[%clk 0:02:40.2]}
10. Nc4 {[%clk 0:02:48.1]} 10... Bb8 {[%clk 0:02:25.2]} 11. dxe5 {[%clk
0:02:47.2]} 11... Nd5 {[%clk 0:02:24]} 12. Qd3 {[%clk 0:02:21.6]} 12... g6
{[%clk 0:02:18.8]} 13. O-O {[%clk 0:02:14.3]} 13... Nc5 {[%clk 0:02:15.5]} 14.
Qd4 {[%clk 0:02:12.6]} 14... Ne6 {[%clk 0:02:14.4]} 15. Qe4 {[%clk 0:02:07.4]}
15... Nc5 {[%clk 0:02:11.6]} 16. Qe2 {[%clk 0:02:03]} 16... Bg4 {[%clk
0:02:08.3]} 17. h3 {[%clk 0:02:01.8]} 17... Bxf3 {[%clk 0:01:54.3]} 18. Qxf3
{[%clk 0:02:02.7]} 18... Nd7 {[%clk 0:01:48]} 19. e6 {[%clk 0:01:31.5]} 19...
fxe6 {[%clk 0:01:35.4]} 20. Qg4 {[%clk 0:01:31.8]} 20... Qe8 {[%clk 0:01:11.8]}
21. Bh6 {[%clk 0:01:29.9]} 21... Rf7 {[%clk 0:01:03.3]} 22. Rae1 {[%clk
0:01:29.6]} 22... e5 {[%clk 0:01:00.8]} 23. Ne3 {[%clk 0:01:07.4]} 23... N7f6
{[%clk 0:00:52.1]} 24. Qh4 {[%clk 0:01:03.5]} 24... Nxe3 {[%clk 0:00:41.1]} 25.
fxe3 {[%clk 0:01:04.4]} 25... Qe7 {[%clk 0:00:25.9]} 26. Bg5 {[%clk 0:00:59.1]}
26... Kg7 {[%clk 0:00:25]} 27. Qh6+ {[%clk 0:00:58.7]} 27... Kg8 {[%clk
0:00:22.4]} 28. Bb3 {[%clk 0:00:58.4]} 1-0

[Event "Late-Titled-Tuesday-Blitz-June-25-2024"]
[Site "Chess.com"]
[Date "2024.06.25"]
[Round "8"]
[White "1g60-1"]
[Black "GrotBchess"]
[Result "0-1"]
[WhiteElo "2465"]
[BlackElo "2592"]
[TimeControl "180+1"]
[EndTime "15:25:38 PDT"]
[Termination "GrotBchess won by resignation"]

1. e4 {[%clk 0:03:00.9]} 1... c5 {[%clk 0:02:58.2]} 2. Nf3 {[%clk 0:03:01.2]}
2... e6 {[%clk 0:02:58.4]} 3. d4 {[%clk 0:03:01.3]} 3... cxd4 {[%clk 0:02:59]}
4. Nxd4 {[%clk 0:03:02.2]} 4... Nc6 {[%clk 0:02:58.6]} 5. Nc3 {[%clk 0:03:02.2]}
5... Qc7 {[%clk 0:02:57.5]} 6. Ndb5 {[%clk 0:03:02]} 6... Qb8 {[%clk 0:02:56.9]}
7. g3 {[%clk 0:03:02.4]} 7... a6 {[%clk 0:02:55.1]} 8. Nd4 {[%clk 0:03:00]} 8...
Nf6 {[%clk 0:02:55.5]} 9. Bg2 {[%clk 0:02:59.4]} 9... Qc7 {[%clk 0:02:51.7]} 10.
O-O {[%clk 0:02:58.3]} 10... Nxd4 {[%clk 0:02:51.2]} 11. Qxd4 {[%clk 0:02:58]}
11... Bc5 {[%clk 0:02:51.7]} 12. Qd3 {[%clk 0:02:56.5]} 12... Ng4 {[%clk
0:02:43.2]} 13. Bf4 {[%clk 0:02:34.4]} 13... Ne5 {[%clk 0:02:42.5]} 14. Qe2
{[%clk 0:02:30.8]} 14... h5 {[%clk 0:02:39.5]} 15. h4 {[%clk 0:02:18.8]} 15...
b5 {[%clk 0:02:37.2]} 16. Rfe1 {[%clk 0:02:08.4]} 16... Bb7 {[%clk 0:02:36.5]}
17. a3 {[%clk 0:01:44.4]} 17... d6 {[%clk 0:02:33.7]} 18. Bxe5 {[%clk
0:01:43.6]} 18... dxe5 {[%clk 0:02:33.4]} 19. Kh2 {[%clk 0:01:41.8]} 19... g6
{[%clk 0:02:28.6]} 20. Rf1 {[%clk 0:01:29.5]} 20... Rd8 {[%clk 0:02:25.5]} 21.
Rad1 {[%clk 0:01:20]} 21... Rd4 {[%clk 0:02:23.6]} 22. f4 {[%clk 0:01:12.1]}
22... exf4 {[%clk 0:02:21.5]} 23. Rxf4 {[%clk 0:01:11.6]} 23... Rxd1 {[%clk
0:02:15.9]} 24. Nxd1 {[%clk 0:01:02.6]} 24... Bd6 {[%clk 0:02:15.5]} 25. Rf3
{[%clk 0:00:59.4]} 25... O-O {[%clk 0:02:14.4]} 26. Rd3 {[%clk 0:00:54.4]} 26...
Be5 {[%clk 0:02:09.1]} 27. Nc3 {[%clk 0:00:48.7]} 27... Rd8 {[%clk 0:02:06.3]}
28. Rxd8+ {[%clk 0:00:38.2]} 28... Qxd8 {[%clk 0:02:07.2]} 29. Kh3 {[%clk
0:00:32.7]} 29... Bxc3 {[%clk 0:01:56]} 30. bxc3 {[%clk 0:00:33.6]} 30... Qc7
{[%clk 0:01:55.1]} 31. Qd3 {[%clk 0:00:27.5]} 31... e5 {[%clk 0:01:51.2]} 32.
Qe3 {[%clk 0:00:21.5]} 32... Bc8+ {[%clk 0:01:50]} 33. Kh2 {[%clk 0:00:21.3]}
33... Be6 {[%clk 0:01:50.1]} 34. Bf3 {[%clk 0:00:19.6]} 34... Kg7 {[%clk
0:01:49.5]} 35. Qg5 {[%clk 0:00:17.8]} 35... Qxc3 {[%clk 0:01:46.5]} 36. g4
{[%clk 0:00:18.2]} 36... hxg4 {[%clk 0:01:45]} 37. Bxg4 {[%clk 0:00:18]} 37...
Bxg4 {[%clk 0:01:44.3]} 38. Qxg4 {[%clk 0:00:18.5]} 38... Qxc2+ {[%clk
0:01:42.7]} 39. Kh3 {[%clk 0:00:18.6]} 39... Qc3+ {[%clk 0:01:42.7]} 40. Kh2
{[%clk 0:00:19]} 40... Qxa3 {[%clk 0:01:42.5]} 41. Qg5 {[%clk 0:00:19.6]} 41...
Qb2+ {[%clk 0:01:37.7]} 42. Kh3 {[%clk 0:00:19.6]} 42... Qc3+ {[%clk 0:01:36.1]}
43. Kh2 {[%clk 0:00:19.2]} 43... Qc2+ {[%clk 0:01:35.8]} 44. Kg1 {[%clk
0:00:17.2]} 44... Qxe4 {[%clk 0:01:35.2]} 45. h5 {[%clk 0:00:17.8]} 45... Qf5
{[%clk 0:01:35.1]} 0-1

[Event "Late-Titled-Tuesday-Blitz-June-25-2024"]
[Site "Chess.com"]
[Date "2024.06.25"]
[Round "8"]
[White "NigiriSushies"]
[Black "toninhojit"]
[Result "0-1"]
[WhiteElo "2276"]
[BlackElo "2506"]
[TimeControl "180+1"]
[EndTime "15:25:41 PDT"]
[Termination "toninhojit won on time"]

1. g3 {[%clk 0:03:00.3]} 1... c5 {[%clk 0:02:59.8]} 2. Bg2 {[%clk 0:03:00.8]}
2... Nc6 {[%clk 0:03:00.5]} 3. Nf3 {[%clk 0:02:56.9]} 3... g6 {[%clk 0:03:00.8]}
4. O-O {[%clk 0:02:56.6]} 4... Bg7 {[%clk 0:03:01.2]} 5. c3 {[%clk 0:02:56.3]}
5... e5 {[%clk 0:03:01.2]} 6. d4 {[%clk 0:02:53.1]} 6... cxd4 {[%clk 0:02:56.5]}
7. cxd4 {[%clk 0:02:54]} 7... exd4 {[%clk 0:02:57.4]} 8. Nbd2 {[%clk 0:02:50.4]}
8... Nge7 {[%clk 0:02:57.4]} 9. Nb3 {[%clk 0:02:48.9]} 9... Qb6 {[%clk 0:02:58]}
10. Bg5 {[%clk 0:02:40.1]} 10... Nf5 {[%clk 0:02:45.1]} 11. Rc1 {[%clk
0:02:25.3]} 11... O-O {[%clk 0:02:42.8]} 12. Bf4 {[%clk 0:02:08]} 12... Re8
{[%clk 0:02:38.3]} 13. g4 {[%clk 0:02:05.6]} 13... Nfe7 {[%clk 0:02:36.6]} 14.
Bd6 {[%clk 0:02:05.4]} 14... a5 {[%clk 0:02:29.6]} 15. Bc5 {[%clk 0:02:01.3]}
15... Qc7 {[%clk 0:02:29.6]} 16. Nbxd4 {[%clk 0:01:58.3]} 16... d5 {[%clk
0:02:29.7]} 17. Nb5 {[%clk 0:01:57.3]} 17... Qf4 {[%clk 0:02:27.8]} 18. Bd6
{[%clk 0:01:55.2]} 18... Qxg4 {[%clk 0:02:27.2]} 19. Nc7 {[%clk 0:01:51.3]}
19... Be6 {[%clk 0:02:24.2]} 20. Nxa8 {[%clk 0:01:48.4]} 20... Rxa8 {[%clk
0:02:25.1]} 21. Bxe7 {[%clk 0:01:44.6]} 21... Nxe7 {[%clk 0:02:26]} 22. Rc7
{[%clk 0:01:44.4]} 22... Nf5 {[%clk 0:02:24.7]} 23. Rxb7 {[%clk 0:01:19.8]}
23... h6 {[%clk 0:02:21.3]} 24. a3 {[%clk 0:01:16.6]} 24... a4 {[%clk
0:02:20.6]} 25. Rb4 {[%clk 0:01:14.5]} 25... Qh5 {[%clk 0:02:09.6]} 26. Rxa4
{[%clk 0:01:12.7]} 26... Rd8 {[%clk 0:02:09.7]} 27. Rb4 {[%clk 0:01:06]} 27...
d4 {[%clk 0:02:09.8]} 28. a4 {[%clk 0:00:58]} 28... g5 {[%clk 0:02:02.5]} 29. a5
{[%clk 0:00:55.1]} 29... g4 {[%clk 0:02:02.9]} 30. Ne1 {[%clk 0:00:41]} 30...
Be5 {[%clk 0:02:02.5]} 31. f4 {[%clk 0:00:37.9]} 31... Ne3 {[%clk 0:01:56.3]}
32. Qd2 {[%clk 0:00:28.7]} 32... Nxf1 {[%clk 0:01:51.9]} 33. Bxf1 {[%clk
0:00:26.2]} 33... Bd6 {[%clk 0:01:52.3]} 34. Rxd4 {[%clk 0:00:24.9]} 34... Bc5
{[%clk 0:01:52.8]} 35. e3 {[%clk 0:00:22.3]} 35... Bxd4 {[%clk 0:01:53.2]} 36.
exd4 {[%clk 0:00:23.2]} 36... Bd5 {[%clk 0:01:44.6]} 37. a6 {[%clk 0:00:15.2]}
37... Re8 {[%clk 0:01:44.4]} 0-1

[Event "Late-Titled-Tuesday-Blitz-June-25-2024"]
[Site "Chess.com"]
[Date "2024.06.25"]
[Round "8"]
[White "MarkusRagger"]
[Black "smallbaba"]
[Result "0-1"]
[WhiteElo "2785"]
[BlackElo "2632"]
[TimeControl "180+1"]
[EndTime "15:25:47 PDT"]
[Termination "smallbaba won by resignation"]

1. d4 {[%clk 0:03:00.9]} 1... Nf6 {[%clk 0:02:58.9]} 2. c4 {[%clk 0:03:00.4]}
2... g6 {[%clk 0:02:59.1]} 3. Nc3 {[%clk 0:02:59.7]} 3... Bg7 {[%clk 0:02:59.8]}
4. e4 {[%clk 0:02:59.4]} 4... d6 {[%clk 0:03:00.4]} 5. Nf3 {[%clk 0:02:59.8]}
5... O-O {[%clk 0:03:00.9]} 6. Be2 {[%clk 0:03:00.3]} 6... e5 {[%clk 0:03:01.4]}
7. O-O {[%clk 0:03:00.6]} 7... Nc6 {[%clk 0:03:01.8]} 8. dxe5 {[%clk 0:03:00.2]}
8... dxe5 {[%clk 0:03:00.6]} 9. Bg5 {[%clk 0:02:52.7]} 9... Bg4 {[%clk
0:03:00.6]} 10. Qxd8 {[%clk 0:02:51.2]} 10... Nxd8 {[%clk 0:02:58.5]} 11. Bxf6
{[%clk 0:02:51.1]} 11... Bxf6 {[%clk 0:02:59]} 12. Nd5 {[%clk 0:02:51.6]} 12...
Kg7 {[%clk 0:02:59.4]} 13. Nxc7 {[%clk 0:02:51.5]} 13... Rc8 {[%clk 0:02:59.8]}
14. Nd5 {[%clk 0:02:51.8]} 14... Bxf3 {[%clk 0:02:59.1]} 15. gxf3 {[%clk
0:02:52.7]} 15... Bg5 {[%clk 0:02:57.6]} 16. Rfd1 {[%clk 0:02:45.6]} 16... Ne6
{[%clk 0:02:57.7]} 17. Kf1 {[%clk 0:02:44.9]} 17... Rfd8 {[%clk 0:02:44.1]} 18.
h3 {[%clk 0:02:28.6]} 18... Nf4 {[%clk 0:02:38.2]} 19. Nxf4 {[%clk 0:02:27.1]}
19... Bxf4 {[%clk 0:02:39.1]} 20. Rd5 {[%clk 0:02:26.1]} 20... Rxd5 {[%clk
0:02:36.5]} 21. exd5 {[%clk 0:02:25.8]} 21... Kf6 {[%clk 0:02:15.7]} 22. Rd1
{[%clk 0:02:14.2]} 22... Ke7 {[%clk 0:02:01.7]} 23. Bd3 {[%clk 0:01:44.2]} 23...
Kd6 {[%clk 0:01:48.2]} 24. Ke2 {[%clk 0:01:44.7]} 24... a5 {[%clk 0:01:46.3]}
25. Rb1 {[%clk 0:01:34.7]} 25... b6 {[%clk 0:01:31.9]} 26. b4 {[%clk 0:01:28.4]}
26... a4 {[%clk 0:01:30.7]} 27. Rb2 {[%clk 0:01:20.1]} 27... Bc1 {[%clk
0:01:26.7]} 28. Rb1 {[%clk 0:01:16.7]} 28... Bf4 {[%clk 0:01:25]} 29. Kd1 {[%clk
0:01:17]} 29... f5 {[%clk 0:01:13.5]} 30. Rb2 {[%clk 0:01:16.3]} 30... e4 {[%clk
0:01:03.1]} 31. fxe4 {[%clk 0:01:15.5]} 31... fxe4 {[%clk 0:01:04]} 32. Be2
{[%clk 0:01:08.4]} 32... Be5 {[%clk 0:00:55.6]} 33. Rc2 {[%clk 0:01:07]} 33...
Bd4 {[%clk 0:00:55]} 34. Bf3 {[%clk 0:00:58]} 34... exf3 {[%clk 0:00:54.3]} 35.
Kd2 {[%clk 0:00:51.6]} 35... Bxf2 {[%clk 0:00:53.2]} 36. Kd3 {[%clk 0:00:52.2]}
36... Be1 {[%clk 0:00:52.1]} 37. Kd4 {[%clk 0:00:48.1]} 37... Bxb4 {[%clk
0:00:47.9]} 0-1

[Event "Late-Titled-Tuesday-Blitz-June-25-2024"]
[Site "Chess.com"]
[Date "2024.06.25"]
[Round "8"]
[White "Flawless_Fighter"]
[Black "TERMINATOR_PC"]
[Result "1/2-1/2"]
[WhiteElo "2779"]
[BlackElo "2601"]
[TimeControl "180+1"]
[EndTime "15:25:48 PDT"]
[Termination "Game drawn by repetition"]

1. d4 {[%clk 0:03:00.9]} 1... f5 {[%clk 0:02:59.6]} 2. g3 {[%clk 0:02:57.9]}
2... g6 {[%clk 0:02:59.1]} 3. Bg2 {[%clk 0:02:58.4]} 3... Nf6 {[%clk 0:02:57.9]}
4. Nd2 {[%clk 0:02:58]} 4... Bg7 {[%clk 0:02:58.4]} 5. e4 {[%clk 0:02:58.5]}
5... fxe4 {[%clk 0:02:57.9]} 6. Nxe4 {[%clk 0:02:59.4]} 6... Nxe4 {[%clk
0:02:47.1]} 7. Bxe4 {[%clk 0:03:00.3]} 7... d5 {[%clk 0:02:48]} 8. Bg2 {[%clk
0:02:59.9]} 8... O-O {[%clk 0:02:46]} 9. f4 {[%clk 0:02:58.1]} 9... c6 {[%clk
0:02:46.9]} 10. Nf3 {[%clk 0:02:57.5]} 10... Nd7 {[%clk 0:02:29.1]} 11. O-O
{[%clk 0:02:56.1]} 11... Nf6 {[%clk 0:02:28]} 12. c3 {[%clk 0:02:56.4]} 12...
Ne4 {[%clk 0:02:28.1]} 13. Be3 {[%clk 0:02:55.5]} 13... Qb6 {[%clk 0:02:25.7]}
14. Qc2 {[%clk 0:02:53.8]} 14... Bf5 {[%clk 0:02:25.5]} 15. Qe2 {[%clk
0:02:51.8]} 15... Bg4 {[%clk 0:02:20.9]} 16. Rae1 {[%clk 0:02:46.7]} 16... Rae8
{[%clk 0:02:17.8]} 17. Qc2 {[%clk 0:02:46.1]} 17... Bf5 {[%clk 0:02:15.9]} 18.
Qc1 {[%clk 0:02:46.4]} 18... a5 {[%clk 0:01:59.6]} 19. Kh1 {[%clk 0:02:43.4]}
19... a4 {[%clk 0:01:53.7]} 20. a3 {[%clk 0:02:43.7]} 20... h5 {[%clk 0:01:51]}
21. Nd2 {[%clk 0:02:42.8]} 21... Nd6 {[%clk 0:01:48]} 22. h3 {[%clk 0:02:37.1]}
22... Bf6 {[%clk 0:01:39.4]} 23. Kh2 {[%clk 0:02:37]} 23... e6 {[%clk
0:01:37.6]} 24. Nf3 {[%clk 0:02:32.8]} 24... Ne4 {[%clk 0:01:36]} 25. Ne5 {[%clk
0:02:31.2]} 25... Qc7 {[%clk 0:01:32.4]} 26. Qd1 {[%clk 0:02:26.4]} 26... Qg7
{[%clk 0:01:17.6]} 27. g4 {[%clk 0:02:16.3]} 27... hxg4 {[%clk 0:01:13.7]} 28.
hxg4 {[%clk 0:02:16.7]} 28... Bxe5 {[%clk 0:01:12.9]} 29. fxe5 {[%clk
0:02:09.4]} 29... Qh7+ {[%clk 0:00:41.9]} 30. Kg1 {[%clk 0:02:09.2]} 30... Qh4
{[%clk 0:00:42.6]} 31. gxf5 {[%clk 0:02:03.7]} 31... exf5 {[%clk 0:00:43.5]} 32.
Bxe4 {[%clk 0:01:43.6]} 32... fxe4 {[%clk 0:00:43.6]} 33. Qe2 {[%clk 0:01:29.2]}
33... Rf3 {[%clk 0:00:37.2]} 34. Rxf3 {[%clk 0:01:00.9]} 34... exf3 {[%clk
0:00:38.1]} 35. Qf2 {[%clk 0:01:01.1]} 35... Qg4+ {[%clk 0:00:38.5]} 36. Kf1
{[%clk 0:00:55.7]} 36... Qh3+ {[%clk 0:00:37.9]} 37. Kg1 {[%clk 0:00:56.1]}
37... Qg4+ {[%clk 0:00:38.7]} 38. Kf1 {[%clk 0:00:52.8]} 38... Qh3+ {[%clk
0:00:38]} 39. Kg1 {[%clk 0:00:53]} 39... Qg4+ {[%clk 0:00:38.8]} 1/2-1/2

[Event "Late-Titled-Tuesday-Blitz-June-25-2024"]
[Site "Chess.com"]
[Date "2024.06.25"]
[Round "8"]
[White "corvachesky"]
[Black "th3d4rkness"]
[Result "1-0"]
[WhiteElo "2472"]
[BlackElo "2257"]
[TimeControl "180+1"]
[EndTime "15:25:48 PDT"]
[Termination "corvachesky won by resignation"]

1. Nf3 {[%clk 0:03:00.9]} 1... Nf6 {[%clk 0:02:59.5]} 2. b3 {[%clk 0:03:00.7]}
2... g6 {[%clk 0:02:58.1]} 3. Bb2 {[%clk 0:03:00.9]} 3... Bg7 {[%clk 0:02:58.5]}
4. e3 {[%clk 0:03:01.3]} 4... d6 {[%clk 0:02:59.1]} 5. Be2 {[%clk 0:03:01.6]}
5... e5 {[%clk 0:02:59.5]} 6. d4 {[%clk 0:02:59.8]} 6... e4 {[%clk 0:02:59.2]}
7. Nfd2 {[%clk 0:02:59.2]} 7... d5 {[%clk 0:02:59.2]} 8. c4 {[%clk 0:02:59.8]}
8... c6 {[%clk 0:02:59.6]} 9. Nc3 {[%clk 0:03:00.4]} 9... O-O {[%clk 0:02:59.2]}
10. O-O {[%clk 0:03:00.9]} 10... h5 {[%clk 0:02:51.8]} 11. Rc1 {[%clk 0:03:00]}
11... a6 {[%clk 0:02:51.5]} 12. cxd5 {[%clk 0:02:55.4]} 12... cxd5 {[%clk
0:02:51.1]} 13. Na4 {[%clk 0:02:55.3]} 13... Bf5 {[%clk 0:02:45.6]} 14. Ba3
{[%clk 0:02:53]} 14... Re8 {[%clk 0:02:44]} 15. Qc2 {[%clk 0:02:48.4]} 15...
Nbd7 {[%clk 0:02:37.7]} 16. Qc7 {[%clk 0:02:46.5]} 16... Rc8 {[%clk 0:02:27.5]}
17. Qxb7 {[%clk 0:02:41.9]} 17... Rxc1 {[%clk 0:02:18.4]} 18. Rxc1 {[%clk
0:02:40.1]} 18... a5 {[%clk 0:02:05.7]} 19. Ba6 {[%clk 0:02:37]} 19... h4 {[%clk
0:01:56.8]} 20. Qb5 {[%clk 0:02:23.7]} 20... h3 {[%clk 0:01:54.4]} 21. Rc8
{[%clk 0:02:21.3]} 21... Qxc8 {[%clk 0:01:50.4]} 22. Bxc8 {[%clk 0:02:22.2]}
22... Rxc8 {[%clk 0:01:51]} 23. Qxa5 {[%clk 0:02:17]} 23... Rc2 {[%clk 0:01:51]}
24. Nc5 {[%clk 0:01:49.5]} 24... Rxa2 {[%clk 0:01:43.2]} 25. Nxd7 {[%clk
0:01:49.4]} 25... Bxd7 {[%clk 0:01:42.3]} 26. Qb4 {[%clk 0:01:35.8]} 26... Ra1+
{[%clk 0:01:34.9]} 27. Nf1 {[%clk 0:01:34.2]} 27... Bg4 {[%clk 0:01:33.4]} 28.
Bb2 {[%clk 0:01:30.1]} 28... Rb1 {[%clk 0:01:26.4]} 29. Qd2 {[%clk 0:01:28.6]}
29... hxg2 {[%clk 0:01:22.6]} 30. Kxg2 {[%clk 0:01:26.1]} 30... Bf3+ {[%clk
0:01:22.8]} 31. Kg1 {[%clk 0:01:23]} 31... Rd1 {[%clk 0:01:19]} 32. Qc2 {[%clk
0:01:21]} 32... Ng4 {[%clk 0:01:07.9]} 33. Ba3 {[%clk 0:01:12.5]} 33... Nxh2
{[%clk 0:01:02.1]} 34. Kxh2 {[%clk 0:01:10.6]} 34... Rxf1 {[%clk 0:01:01.8]} 35.
Qc8+ {[%clk 0:01:07.4]} 35... Bf8 {[%clk 0:01:01]} 36. Qxf8+ {[%clk 0:01:06.3]}
36... Kh7 {[%clk 0:01:01.4]} 37. Qxf7+ {[%clk 0:01:06.5]} 37... Kh6 {[%clk
0:01:00.9]} 38. Bf8+ {[%clk 0:01:00]} 38... Kh5 {[%clk 0:00:59.3]} 39. Qxd5+
{[%clk 0:00:57.7]} 39... g5 {[%clk 0:00:53.6]} 40. Qf7+ {[%clk 0:00:50.3]} 40...
Kg4 {[%clk 0:00:53.1]} 41. Qe6+ {[%clk 0:00:48.1]} 41... Kh5 {[%clk 0:00:52.6]}
42. Qh3+ {[%clk 0:00:47.9]} 1-0